{"text_format":"1","workbook":"xlsx","n_sheets":1,"sheets":["Sheet1"],"not_rendered":{"charts":0,"images":1,"macros":0,"external_links":0,"defined_names":1,"comments":0,"pivot_tables":0},"unopened":[],"bounds":{"document_bytes":16777216,"sheet_cells":100000,"rows_first":2000,"rows_last":500,"rows_between":2000,"halvings":0,"cell_chars":16384,"cell_head_chars":4096},"cells_cut":0,"cells_raw":0,"read":"whole","date_system":"1900"}

{"sheet":"Sheet1","index":0,"n_rows":100,"n_cols":10,"rows_kept":100,"cut":false,"hidden":false,"merged":[[0,0,0,6],[1,1,1,6]]}
["Median and Quartiles",null,null,null,null,null,null,null,"Enter data values in this column (up to 100 values):"]
[null,"Work out the five-figure summary, mean and (semi) interquartile ranges for a data set",null,null,null,null,null,null,null,{"$f":"IF(ISBLANK(I2),\"\",LARGE(Data,ROW()-1))","v":""}]
[null,null,null,null,null,null,null,null,null,""]
[null,null,"size of data set","n = ",{"$f":"IF(COUNTA(Data)<=1,\"\",COUNTA(I2:I101))","v":""},null,null,null,null,""]
[null,null,null,null,null,null,null,null,null,""]
[null,"lowest","lower quartile","median","upper quartile","highest",null,null,null,""]
[null,{"$f":"IF(COUNTA(Data)<=1,\"\",MIN(Data))","v":""},{"$f":"IF(COUNTA(Data)<=1,\"\",IF(MOD(E4,4)=3,OFFSET(J1,(3*(E4+1))/4,0),IF(MOD(E4,4)=2,OFFSET(J1,((E4*0.75)+0.5),0),IF(MOD(E4,4)=1,AVERAGE(OFFSET(J1,((E4*0.75)+0.25),0),OFFSET(J1,((E4*0.75)+1.25),0)),AVERAGE(OFFSET(J1,(E4*0.75),0),OFFSET(J1,((E4*0.75)+1),0))))))","v":""},{"$f":"IF(COUNTA(Data)<=1,\"\",QUARTILE(Data,2))","v":""},{"$f":"IF(COUNTA(Data)<=1,\"\",IF(MOD(E4,4)=3,OFFSET(J1,(E4+1)/4,0),IF(MOD(E4,4)=2,OFFSET(J1,(E4+2)/4,0),IF(MOD(E4,4)=1,AVERAGE(OFFSET(J1,(E4-1)/4,0),OFFSET(J1,((E4-1)/4)+1,0)),AVERAGE(OFFSET(J1,(E4)/4,0),OFFSET(J1,((E4)/4)+1,0))))))","v":""},{"$f":"IF(COUNTA(Data)<=1,\"\",MAX(Data))","v":""},null,null,null,""]
[null,null,null,null,null,null,null,null,null,""]
[null,null,"Semi Interquartile Range",null,{"$f":"IF(COUNTA(Data)<=1,\"\",(E7-C7)/2)","v":""},null,null,null,null,""]
[null,null,"Interquartile Range",null,{"$f":"IF(COUNTA(Data)<=1,\"\",(E8-C8))","v":""},null,null,null,null,""]
[null,null,"mean",null,{"$f":"IF(COUNTA(Data)<=1,\"\",AVERAGE(I2:I101))","v":""},null,null,null,null,""]
[null,null,null,null,null,null,null,null,null,""]
[null,null,null,null,null,null,null,null,null,""]
[null,null,null,null,null,null,null,null,null,""]
[null,null,null,null,null,null,null,null,null,""]
[null,null,null,null,null,null,null,null,null,""]
[null,null,null,null,null,null,null,null,null,""]
["© Dynamic Worksheets, all rights reserved",null,null,null,null,null,null,null,null,""]
[null,null,null,null,null,null,null,null,null,""]
[null,null,null,null,null,null,null,null,null,""]
[null,null,null,null,null,null,null,null,null,""]
[null,null,null,null,null,null,null,null,null,""]
[null,null,null,null,null,null,null,null,null,""]
[null,null,null,null,null,null,null,null,null,""]
[null,null,null,null,null,null,null,null,null,""]
[null,null,null,null,null,null,null,null,null,""]
[null,null,null,null,null,null,null,null,null,""]
[null,null,null,null,null,null,null,null,null,""]
[null,null,null,null,null,null,null,null,null,""]
[null,null,null,null,null,null,null,null,null,""]
[null,null,null,null,null,null,null,null,null,""]
[null,null,null,null,null,null,null,null,null,""]
[null,null,null,null,null,null,null,null,null,""]
[null,null,null,null,null,null,null,null,null,{"$f":"IF(ISBLANK(I34),\"\",LARGE(Data,ROW()-1))","v":""}]
[null,null,null,null,null,null,null,null,null,""]
[null,null,null,null,null,null,null,null,null,""]
[null,null,null,null,null,null,null,null,null,""]
[null,null,null,null,null,null,null,null,null,""]
[null,null,null,null,null,null,null,null,null,""]
[null,null,null,null,null,null,null,null,null,""]
[null,null,null,null,null,null,null,null,null,""]
[null,null,null,null,null,null,null,null,null,""]
[null,null,null,null,null,null,null,null,null,""]
[null,null,null,null,null,null,null,null,null,""]
[null,null,null,null,null,null,null,null,null,""]
[null,null,null,null,null,null,null,null,null,""]
[null,null,null,null,null,null,null,null,null,""]
[null,null,null,null,null,null,null,null,null,""]
[null,null,null,null,null,null,null,null,null,""]
[null,null,null,null,null,null,null,null,null,""]
[null,null,null,null,null,null,null,null,null,""]
[null,null,null,null,null,null,null,null,null,""]
[null,null,null,null,null,null,null,null,null,""]
[null,null,null,null,null,null,null,null,null,""]
[null,null,null,null,null,null,null,null,null,""]
[null,null,null,null,null,null,null,null,null,""]
[null,null,null,null,null,null,null,null,null,""]
[null,null,null,null,null,null,null,null,null,""]
[null,null,null,null,null,null,null,null,null,""]
[null,null,null,null,null,null,null,null,null,""]
[null,null,null,null,null,null,null,null,null,""]
[null,null,null,null,null,null,null,null,null,""]
[null,null,null,null,null,null,null,null,null,""]
[null,null,null,null,null,null,null,null,null,""]
[null,null,null,null,null,null,null,null,null,""]
[null,null,null,null,null,null,null,null,null,{"$f":"IF(ISBLANK(I66),\"\",LARGE(Data,ROW()-1))","v":""}]
[null,null,null,null,null,null,null,null,null,""]
[null,null,null,null,null,null,null,null,null,""]
[null,null,null,null,null,null,null,null,null,""]
[null,null,null,null,null,null,null,null,null,""]
[null,null,null,null,null,null,null,null,null,""]
[null,null,null,null,null,null,null,null,null,""]
[null,null,null,null,null,null,null,null,null,""]
[null,null,null,null,null,null,null,null,null,""]
[null,null,null,null,null,null,null,null,null,""]
[null,null,null,null,null,null,null,null,null,""]
[null,null,null,null,null,null,null,null,null,""]
[null,null,null,null,null,null,null,null,null,""]
[null,null,null,null,null,null,null,null,null,""]
[null,null,null,null,null,null,null,null,null,""]
[null,null,null,null,null,null,null,null,null,""]
[null,null,null,null,null,null,null,null,null,""]
[null,null,null,null,null,null,null,null,null,""]
[null,null,null,null,null,null,null,null,null,""]
[null,null,null,null,null,null,null,null,null,""]
[null,null,null,null,null,null,null,null,null,""]
[null,null,null,null,null,null,null,null,null,""]
[null,null,null,null,null,null,null,null,null,""]
[null,null,null,null,null,null,null,null,null,""]
[null,null,null,null,null,null,null,null,null,""]
[null,null,null,null,null,null,null,null,null,""]
[null,null,null,null,null,null,null,null,null,""]
[null,null,null,null,null,null,null,null,null,""]
[null,null,null,null,null,null,null,null,null,""]
[null,null,null,null,null,null,null,null,null,""]
[null,null,null,null,null,null,null,null,null,""]
[null,null,null,null,null,null,null,null,null,""]
[null,null,null,null,null,null,null,null,null,{"$f":"IF(ISBLANK(I98),\"\",LARGE(Data,ROW()-1))","v":""}]
[null,null,null,null,null,null,null,null,null,""]
[null,null,null,null,null,null,null,null,null,""]